[Event "71st Greek Championship 2022"]
[Site "Athens"]
[Date "2022.12.05"]
[Round "3.4"]
[White "Alexakis, Dimitris"]
[Black "Markidis, Konstantinos"]
[Result "1-0"]
[ECO "C11"]
[WhiteElo "2486"]
[BlackElo "2290"]
[Annotator "TA"]
[PlyCount "91"]
[EventDate "2022.12.04"]
[EventType "tourn"]
[EventCountry "GRE"]
[SourceTitle "playchess.com"]
[Source "ChessBase"]
[SourceQuality "1"]
[TimeControl "40/5400+30:1800+30"]

{[%evp 15,91,6,10,10,8,18,5,0,36,37,41,35,21,0,0,0,122,45,34,33,39,33,35,34,41,39,50,50,81,49,50,39,52,40,51,18,22,27,8,0,0,0,18,5,20,28,219,113,122,91,94,95,135,132,857,852,840,816,29969,29970,29969,29971,29970,29972,29972,29973,29973,29974,29970,29971,29971,29972,29972,29973,29972,29972,29972,29972]} 1. e4 {[%emt 0:00:04]} e6 {[%emt 0:00:42]} 2. d4 {[%emt 0:00:38]} d5 {[%emt 0:00:17]} 3. Nc3 {[%emt 0:00:23]} Nf6 {[%emt 0:00:13]} 4. e5 {[%emt 0:00:19]} Nfd7 {[%emt 0:00:08]} 5. f4 {[%emt 0:00:04]} c5 {[%emt 0:00:09]} 6. Nf3 {[%emt 0:00:04]} Nc6 {[%emt 0:00:24]} 7. Be3 {[%emt 0:00:05]} Be7 {[%emt 0:00:53]} 8. Qd2 {[%emt 0:00:39]} a6 {[%emt 0:00:12] outshines the older 8...0-0.} 9. a3 {[%emt 0:05:37] C11: French: Classical System: 4 e5 and 4 Bg5 dxe4.} O-O {[%emt 0:01:40]} 10. dxc5 {[%emt 0:00:23] 10.Be2 is vanishing.} Nxc5 {[%emt 0:00:07]} 11. Qf2 {[%emt 0:01:17] The position is equal.} b6 {[%emt 0:00:46]} (11... Ne4 12. Nxe4 dxe4 13. Nd2 $16) (11... Qa5 $5 {[%cal Rc5e4]}) 12. b4 {[%emt 0:00:23]} f6 {[%emt 0:00:27][%cal Of6e5]} 13. bxc5 {[%emt 0:33:35]} bxc5 {[%emt 0:00:09] [#]} 14. exf6 $146 {[%emt 0:09:02]} (14. Bxc5 {is interesting.} Qa5 15. Bd4 fxe5 16. Nxe5 Nxd4 17. Qxd4 Rxf4 18. Nc6) ({Predecessor:} 14. Bxc5 Qa5 15. Bd4 fxe5 16. Nxe5 Nxd4 17. Qxd4 Rxf4 18. Nc6 Bc5 19. Qe5 Bd6 20. Qxg7+ Kxg7 21. Nxa5 {½-½ (55) Ragger,M (2694)-Bluebaum,M (2641) Novi Sad 2016}) 14... Bxf6 {[%emt 0:03:41]} 15. Bd2 {[%emt 0:00:27]} c4 {[%emt 0:05:06]} (15... Nd4 $1 $11 16. Nxd4 cxd4) 16. Be2 {[%emt 0:12:47]} (16. Rb1 $16) 16... d4 $1 $14 {[%emt 0:04:59] [#] Inhibits g3.} 17. Bxc4 $1 {[%emt 0:06:21]} dxc3 {[%emt 0:03:36]} 18. Be3 {[%emt 0:00:11]} Ne7 {[%emt 0:03:43]} 19. O-O {[%emt 0:07:31]} Qc7 {[%emt 0:06:27]} 20. Bb3 {[%emt 0:03:24]} Kh8 {[%emt 0:03:44]} 21. Rad1 {[%emt 0:01:49]} Ng6 {[%emt 0:04:37]} 22. Bc5 {[%emt 0:04:01]} Be7 {[%emt 0:01:53] Prevents Bd6.} 23. Bxe7 {[%emt 0:01:32]} Qxe7 {[%emt 0:00:25]} 24. g3 {[%emt 0:01:33]} e5 {[%emt 0:08:32]} 25. Rfe1 {[%emt 0:01:40][%cal Rf3e5]} (25. Qe3 $5 {[%cal Rf3e5]}) 25... Bg4 {[%emt 0:04:16][%cal Oe7c7]} 26. Rd3 {[%emt 0:01:16]} Qxa3 {[%emt 0:09:21]} 27. Nxe5 {[%emt 0:00:19]} (27. Rxc3 exf4 28. Ng5 Rf5 $15) (27. fxe5 a5 $15) (27. Ng5 {with more complications.} Bf5 28. Rf3 Bg4 29. f5) 27... Nxe5 {[%emt 0:00:56]} 28. Rxe5 {[%emt 0:00:07]} Rae8 {[%emt 0:01:31]} 29. Qe1 {[%emt 0:07:49]} (29. Rxc3 $2 Rxe5 30. Kg2 Re2 $19) 29... Rxe5 {[%emt 0:06:34]} (29... Qc5+ {simplifies} 30. Rxc5 Rxe1+ 31. Kf2 Re2+) 30. Qxe5 {[%emt 0:00:02]} h6 $2 {[%emt 0:02:42]} (30... a5 $1 $11 {and Black stays safe.} 31. Rd4 (31. Rxc3 $2 Qc1+ 32. Kg2 Qd2+ 33. Kg1 Be2 $19) 31... Bh3) 31. Kg2 {[%emt 0:01:11]} (31. Qxc3 Qc1+ 32. Kf2 Qh1 $17) (31. Rd6 $1 $18 {[%cal Rd6h6]} Kh7 32. Qe4+ Bf5 33. Qe7) 31... Qb4 $16 {[%emt 0:03:22]} 32. h3 {[%emt 0:00:58] And now Rd6 would win.} (32. Qxc3 Qe4+ 33. Kg1 Bh3 $11) 32... Bf5 {[%emt 0:01:23] [#]} 33. Rd6 {[%emt 0:00:51]} Kh7 {[%emt 0:01:38] [#]} 34. g4 $1 $40 {[%emt 0:00:35][%mdl 128] White wants a kill. The board is on fire.} (34. Rxa6 $2 Qb7+ 35. Kf2 Qxa6 $19) 34... Bc8 {[%emt 0:02:03][%mdl 8192]} (34... Bg6 $16) 35. Kg3 $18 {[%emt 0:00:13] Strongly threatening Bd5.} Qb7 {[%emt 0:03:35]} 36. Bd5 {[%emt 0:00:44]} (36. Qxc3 Qa7 $18) 36... Qb1 {[%emt 0:00:46] [#]} 37. Rxh6+ $3 {[%emt 0:00:14][%mdl 512] White mates.} gxh6 {[%emt 0:00:30]} 38. Qe7+ {[%emt 0:00:06]} (38. Qxc3 $2 {too greedy.} Qg1+ 39. Bg2 Be6 $19) 38... Kg6 {[%emt 0:00:39]} 39. Be4+ {[%emt 0:00:25]} Bf5 {[%emt 0:02:07]} 40. gxf5+ {[%emt 0:00:00]} Rxf5 {[%emt 0:00:00] KQR-KQB} 41. Qe6+ {[%emt 0:06:28][%mdl 64] Pin} Kg7 {[%emt 0:00:30]} 42. Bxf5 {[%emt 0:00:05]} Qg1+ {[%emt 0:01:46]} 43. Kh4 {[%emt 0:05:36]} Qf2+ {[%emt 0:00:35]} 44. Kh5 {[%emt 0:00:12]} Qf3+ {[%emt 0:01:02]} 45. Bg4 {[%emt 0:00:04]} Qxf4 {[%emt 0:00:33]} 46. Qg6+ {[%emt 0:00:16] Weighted Error Value: White=0.10 (very precise) /Black=0.37} (46. Qxa6 $2 Qg5#) 1-0

[Event "71st Greek Championship 2022"]
[Site "Athens"]
[Date "2022.12.05"]
[Round "3.5"]
[White "Koutlas, Nikolaos"]
[Black "Alexiadis, Hristos"]
[Result "1-0"]
[ECO "C54"]
[WhiteElo "2267"]
[BlackElo "2342"]
[Annotator "TA"]
[PlyCount "57"]
[EventDate "2022.12.04"]
[EventType "tourn"]
[EventCountry "GRE"]
[SourceTitle "playchess.com"]
[Source "ChessBase"]
[SourceQuality "1"]
[TimeControl "40/5400+30:1800+30"]

{[%evp 9,57,0,20,-32,-28,-32,-31,-20,-20,-39,-38,-47,-39,-45,-47,-58,97,91,57,80,138,133,118,75,180,52,64,68,47,66,37,55,45,43,48,43,65,33,302,286,490,307,316,277,620,608,577,573,475,456]} 1. e4 {[%emt 0:00:03]} e5 {[%emt 0:00:09]} 2. Nf3 {[%emt 0:00:05]} Nc6 {[%emt 0:00:07]} 3. Bc4 {[%emt 0:00:04]} Bc5 {[%emt 0:00:30]} 4. c3 {[%emt 0:00:06]} Nf6 {[%emt 0:00:11]} 5. d4 {[%emt 0:00:14]} exd4 {[%emt 0:00:09]} 6. b4 {[%emt 0:00:04] C54: Giuoco Piano: 4 c3 Nf6, main lines with 5 d4 and 5 d3.} (6. cxd4 $11 Bb4+ 7. Bd2) 6... Bb6 $15 {[%emt 0:01:41]} 7. e5 {[%emt 0:00:06]} d5 {[%emt 0:02:43]} 8. exf6 {[%emt 0:00:16] Black is slightly better.} dxc4 {[%emt 0:00:11]} 9. Qe2+ {[%emt 0:00:05]} (9. fxg7 Rg8 10. b5 Ne7 $17) 9... Be6 $1 {[%emt 0:00:53]} (9... Kf8 10. b5 Na5 11. Qe5 $14) 10. b5 $1 {[%emt 0:00:25]} (10. fxg7 Rg8 11. Bg5 Qd5 $17) 10... Na5 $1 {[%emt 0:06:19]} 11. fxg7 {[%emt 0:03:14]} Rg8 {[%emt 0:01:41]} 12. cxd4 {[%emt 0:00:37] Threatens to win with 0-0.} Bxd4 $2 {[%emt 0:10:25]} (12... Rxg7 13. O-O $14) (12... Qd7 $1 $15 {keeps the upper hand.} 13. d5 Qxd5) 13. Nxd4 $16 {[%emt 0:04:49]} Qxd4 {[%emt 0:00:06]} 14. Bb2 {[%emt 0:00:53]} Qd3 {[%emt 0:06:09] [#]} (14... Qf4 $142) 15. Bf6 $1 {[%emt 0:11:06] Black must now prevent Nc3.} Qg6 {[%emt 0:06:55]} 16. Qf3 {[%emt 0:07:53] [#] 0-0 is the strong threat.} Bd5 $146 {[%emt 0:09:31] [#]} ({Predecessor:} 16... Rxg7 17. Nd2 Qxg2 18. Qa3 {1-0 (18) Romero Holmes,A (2445)-Estremera Panos,S (2315) Leon 1989}) 17. Qxd5 {[%emt 0:15:16]} (17. Qe3+ $1 $18 Be6 18. Qd4 Rxg7 19. Nc3 (19. Bxg7 Rd8 $15)) 17... Qxf6 $14 {[%emt 0:00:11] [#]} 18. O-O $1 {[%emt 0:00:18] Intending Re1+ and mate. Chess con chili.} Rxg7 $1 {[%emt 0:01:20]} 19. Nd2 $1 $40 {[%emt 0:02:09][%cal Bb1d2,Bd2e4,Be4g3][%mdl 160] Black needs to defend precisely.} Kf8 {[%emt 0:14:12]} 20. Ne4 {[%emt 0:09:40][%mdl 1024] Inhibits Qg5. White has compensation.} Qe6 {[%emt 0:05:48]} 21. Qc5+ {[%emt 0:00:20]} Qe7 {[%emt 0:00:33] Strongly threatening ...Qxc5.} 22. Qf5 {[%emt 0:00:14] And now Rfe1 would win.} Qe6 {[%emt 0:01:13]} 23. Qf3 {[%emt 0:01:08] White is more active.} f5 $2 {[%emt 0:27:09][%mdl 8192] Black cannot hold the game after this.} (23... Qg4 $2 24. Qa3+ Kg8 25. Nf6+ (25. Qxa5 $2 Qxg2#) 25... Kh8 26. Nxg4 $18) ({Better is} 23... a6 $1 $14) 24. Ng3 $18 {[%emt 0:09:59]} Kg8 $2 {[%emt 0:00:15]} (24... f4 25. Nh5 (25. Qxf4+ Rf7 $16) 25... Re7) 25. Rfe1 {[%emt 0:01:41]} ({Worse is} 25. Qxf5 Qxf5 26. Nxf5 Rg5 $15) ({Weaker is} 25. Nxf5 Rg5 26. Ne3 Rf8 $11) 25... Qg6 {[%emt 0:01:11]} 26. Nxf5 {[%emt 0:00:34] aiming for Re7.} Rf8 $2 {[%emt 0:00:58]} (26... Rf7) 27. Qd5+ {[%emt 0:00:06] White is clearly winning.} Kh8 {[%emt 0:00:04]} 28. Nxg7 {[%emt 0:00:13]} Qxg7 {[%emt 0:00:05]} 29. Rad1 {[%emt 0:01:14] Weighted Error Value: White=0.20 (precise) /Black=0.50} 1-0

[Event "71st Greek Championship 2022"]
[Site "Athens"]
[Date "2022.12.06"]
[Round "4.1"]
[White "Skembris, Spyridon"]
[Black "Alexiadis, Hristos"]
[Result "1/2-1/2"]
[ECO "A29"]
[WhiteElo "2381"]
[BlackElo "2342"]
[Annotator "TA"]
[PlyCount "74"]
[EventDate "2022.12.04"]
[EventType "tourn"]
[EventCountry "GRE"]
[SourceTitle "playchess.com"]
[Source "ChessBase"]
[SourceQuality "1"]
[TimeControl "40/5400+30:1800+30"]

{[%evp 21,74,0,0,0,10,0,0,0,0,0,0,0,-15,-57,-45,-55,-54,-56,-53,-56,-54,-62,-64,-70,-33,-33,-33,-33,-33,-33,-33,-33,-27,-12,-26,-18,-39,-38,-38,-50,21,19,164,0,0,0,0,0,0,0,0,0,0,0,0]} 1. c4 {[%emt 0:00:19]} e5 {[%emt 0:00:16]} 2. g3 {[%emt 0:00:18]} Nf6 {[%emt 0:00:10]} 3. Bg2 {[%emt 0:00:11]} d5 4. cxd5 {[%emt 0:00:10]} Nxd5 {[%emt 0:01:03]} 5. Nc3 {[%emt 0:00:05]} Nb6 {[%emt 0:00:08]} 6. Nf3 {[%emt 0:03:40]} Nc6 {[%emt 0:00:26]} 7. O-O {[%emt 0:00:37]} Be7 {[%emt 0:00:11]} 8. a3 {[%emt 0:01:35]} O-O {[%emt 0:00:20]} 9. b4 {[%emt 0:00:42]} Re8 {[%emt 0:00:39]} 10. d3 {[%emt 0:04:52]} Bf8 {[%emt 0:05:21]} 11. Bb2 {[%emt 0:01:24]} Bg4 {[%emt 0:19:42]} 12. h3 {[%emt 0:05:33] A29: English Opening: Four Knights Variation with 4 g3.} Be6 {[%emt 0:00:06]} 13. Rc1 {[%emt 0:02:39]} a5 {[%emt 0:09:05]} 14. b5 {[%emt 0:34:34]} Nd4 {[%emt 0:01:41]} 15. Nxd4 $1 {[%emt 0:03:23]} exd4 {[%emt 0:00:06]} 16. Na4 {[%emt 0:01:40]} Bd5 {[%emt 0:04:41] [#]} 17. Nxb6 $146 {[%emt 0:03:36]} ({Predecessor:} 17. Bxd5 Nxd5 18. Rc4 Qd7 19. Rxd4 Qxb5 20. e3 Rad8 21. Rh4 Nb6 22. Nxb6 Qxb2 23. Qh5 {1-0 (40) Seidens,U (2204)-Scheidt,K (2063) Bayern 2004}) 17... cxb6 {[%emt 0:00:35]} 18. a4 {[%emt 0:00:48][%cal Oc1c4]} Bc5 {[%emt 0:01:08]} 19. Bxd5 {[%emt 0:06:34]} Qxd5 {[%emt 0:00:00]} 20. Rc4 {[%emt 0:00:43]} Rad8 {[%emt 0:03:08]} 21. Kh2 {[%emt 0:06:29]} Qe6 $1 {[%emt 0:10:23]} 22. Re1 {[%emt 0:01:53]} Qf5 {[%emt 0:00:07]} 23. Rf1 {[%emt 0:02:49]} Re6 {[%emt 0:02:05]} 24. f4 {[%emt 0:05:13]} Rh6 {[%emt 0:02:32]} 25. h4 {[%emt 0:00:41]} Re6 {[%emt 0:08:08]} 26. Rf2 {[%emt 0:00:55]} Qg4 {[%emt 0:10:19]} 27. Qf1 {[%emt 0:01:47]} Rde8 {[%emt 0:12:35][%cal Re6e2]} 28. Bxd4 {[%emt 0:01:38]} Rxe2 {[%emt 0:01:00]} 29. Bxc5 {[%emt 0:00:28]} bxc5 {[%emt 0:00:05]} 30. Rxc5 {[%emt 0:02:09]} Re1 {[%emt 0:01:56] Inhibits d4.} (30... h6 $15 31. Re5 (31. Rxe2 $2 Rxe2+ 32. Kh1 Re3 $19) 31... R2xe5 32. fxe5 Qxa4 33. Rxf7 Rxe5) 31. Qg2 $11 {[%emt 0:00:27]} h5 {[%emt 0:01:47]} (31... b6 $11 {and Black has nothing to worry.} 32. Re5 R8xe5 33. fxe5 h6) 32. Re5 $2 {[%emt 0:03:08] [#]} (32. Rg5 Qd1 33. Re5 (33. Qxb7 $2 R1e2 $19) 33... Qxa4 $11) (32. Qxb7 $18 {[%cal Oc5e5] Strongly threatening Re5!} Qd1 33. Re5) 32... R8xe5 {[%emt 0:01:31] The position is equal.} 33. fxe5 {[%emt 0:00:01]} Re3 {[%emt 0:00:08]} 34. d4 {[%emt 0:01:45]} (34. Qxb7 $2 {gets mated.} Qxg3+ 35. Kh1 Re1+) 34... g5 {[%emt 0:02:03]} 35. Qh3 {[%emt 0:00:30] [#] Hoping for Qxg4.} (35. Qxb7 $2 {leads to mate.} Qxg3+ 36. Kh1 Re1+) 35... gxh4 {[%emt 0:00:30]} 36. Qxh4 {[%emt 0:00:30]} Qxh4+ {[%emt 0:00:30]} 37. gxh4 {[%emt 0:00:30]} Re4 {[%emt 0:00:30] Against Rf4.   Weighted Error Value: White=0.11 (very precise) /Black=0.16 (very precise)} 1/2-1/2

[Event "71st Greek Championship 2022"]
[Site "Athens"]
[Date "2022.12.06"]
[Round "4.2"]
[White "Markidis, Konstantinos"]
[Black "Koutlas, Nikolaos"]
[Result "1/2-1/2"]
[ECO "B51"]
[WhiteElo "2290"]
[BlackElo "2267"]
[Annotator "TA"]
[PlyCount "65"]
[EventDate "2022.12.04"]
[EventType "tourn"]
[EventCountry "GRE"]
[SourceTitle "playchess.com"]
[Source "ChessBase"]
[SourceQuality "1"]
[TimeControl "40/5400+30:1800+30"]

{[%evp 9,65,7,15,19,0,0,0,0,0,11,4,7,13,0,0,0,6,8,5,12,14,8,8,20,25,20,16,9,20,19,16,11,11,0,0,-9,14,-77,0,0,0,0,27,39,28,35,59,59,59,58,58,58,58,58,58,58,58,58]} 1. e4 {[%emt 0:00:04]} c5 {[%emt 0:00:05]} 2. Nf3 {[%emt 0:00:06]} d6 {[%emt 0:00:04]} 3. Bb5+ {[%emt 0:00:16]} Nd7 {[%emt 0:00:09]} 4. c3 {[%emt 0:00:53]} Ngf6 {[%emt 0:00:05]} 5. Bd3 {[%emt 0:00:07]} g6 {[%emt 0:00:04]} 6. Bc2 {[%emt 0:00:10] B51: Sicilian: Moscow Variation (3 Bb5+) without 3...Bd7.} b5 {[%emt 0:00:11]} 7. O-O {[%emt 0:00:15]} (7. d4 cxd4 8. cxd4 Bb7 9. Nbd2 Bg7 10. O-O O-O 11. Re1 e5 12. d5 a5 13. a4 bxa4 14. Rxa4 Ba6 15. Ra3 Qb6 16. h3 {½-½ (29) Markidis,K (2259)-Koutlas,N (2314) Kavala 2022}) 7... Bb7 {[%emt 0:00:32]} 8. Re1 {[%emt 0:00:09] The position is equal.} Bg7 {[%emt 0:00:07]} 9. d4 {[%emt 0:00:24]} O-O {[%emt 0:00:07] [#]} 10. a4 $146 {[%emt 0:00:52]} ({Predecessor:} 10. d5 Re8 11. a4 a6 12. Bf4 Nh5 13. Be3 Nb6 14. Nbd2 e6 15. dxe6 Rxe6 16. axb5 axb5 17. Rxa8 Qxa8 {0-1 (75) Vachier Lagrave,M (2778)-Nepomniachtchi,I (2784) chess24.com INT 2020}) 10... a6 {[%emt 0:00:06]} 11. h3 {[%emt 0:03:50]} e6 {[%emt 0:01:34]} 12. Bf4 {[%emt 0:03:17]} e5 {[%emt 0:01:03]} 13. dxe5 {[%emt 0:07:31]} dxe5 {[%emt 0:00:07]} 14. Nxe5 {[%emt 0:00:47]} Nxe5 {[%emt 0:00:14]} 15. Bxe5 {[%emt 0:00:26]} Re8 {[%emt 0:00:24]} 16. Qxd8 {[%emt 0:11:22]} Raxd8 {[%emt 0:00:16]} 17. Bxf6 {[%emt 0:03:40]} Bxf6 {[%emt 0:00:10]} 18. axb5 {[%emt 0:00:19]} axb5 {[%emt 0:02:21]} 19. Ra5 {[%emt 0:10:29]} Bc6 {[%emt 0:09:44]} 20. Ra6 {[%emt 0:00:53]} Re6 {[%emt 0:09:17]} 21. f4 {[%emt 0:24:13]} Bh4 {[%emt 0:20:40]} 22. Re3 {[%emt 0:02:00]} c4 {[%emt 0:02:31]} (22... b4 $5 {[%cal Rb4b3]}) 23. e5 {[%emt 0:04:48] [#]} (23. g3 $11 {remains equal.} Be7 24. Re2) 23... Be7 {[%emt 0:11:08]} (23... Be4 $1 $17 {[%cal Re4c2]} 24. Rxe6 Bxc2) 24. Kh2 $11 {[%emt 0:03:30]} Bc5 {[%emt 0:00:37] Prevents f5.} 25. Re1 {[%emt 0:00:56]} Bb7 {[%emt 0:11:34] Inhibits f5. A strong pair of Bishops.} (25... Bd5 $5 {[%cal Re6a6]} 26. Ra5 Bc6 $11) 26. Rxe6 {[%emt 0:04:04]} fxe6 {[%emt 0:00:06]} 27. Re2 {[%emt 0:02:26]} Rf8 {[%emt 0:05:30] White is slightly better.} 28. Kg3 $1 {[%emt 0:00:39]} Ra8 {[%emt 0:01:02]} 29. Nd2 $1 {[%emt 0:01:46]} Ra2 {[%emt 0:05:45]} 30. Ne4 $1 {[%emt 0:01:13]} Bxe4 {[%emt 0:02:58]} 31. Bxe4 {[%emt 0:00:08]} Ba3 {[%emt 0:00:16]} 32. Kf3 {[%emt 0:01:24]} Rxb2 {[%emt 0:00:34]} 33. Rxb2 {[%emt 0:00:07] Weighted Error Value: White=0.07 (flawless) /Black=0.07 (flawless)} 1/2-1/2

[Event "71st Greek Championship 2022"]
[Site "Athens"]
[Date "2022.12.06"]
[Round "4.3"]
[White "Moutousis, Konstantinos"]
[Black "Alexakis, Dimitris"]
[Result "0-1"]
[ECO "B22"]
[WhiteElo "2392"]
[BlackElo "2486"]
[Annotator "TA"]
[PlyCount "128"]
[EventDate "2022.12.04"]
[EventType "tourn"]
[EventCountry "GRE"]
[SourceTitle "playchess.com"]
[Source "ChessBase"]
[SourceQuality "1"]
[TimeControl "40/5400+30:1800+30"]

{[%evp 23,128,-14,-12,-16,0,-8,-25,-36,-32,-34,-41,-36,-35,-41,-50,-42,-48,-51,-50,-65,-54,-66,-58,-54,-56,-64,-63,-85,-69,-118,-117,-157,-90,-151,-154,-134,-94,-122,-97,-104,-97,-159,0,0,-6,-8,0,0,122,127,116,69,93,61,101,102,101,77,104,34,52,14,99,104,109,83,230,237,233,133,162,0,231,90,129,109,110,122,168,95,125,54,59,0,0,7,31,30,44,0,0,-79,-67,-99,-110,-708,-707,-700,-653,-655,-631,-29978,-29979,-29978,-29979,-29991,-29992]} 1. e4 {[%emt 0:00:02]} c5 {[%emt 0:00:06][%cal Bc7c5,Bc5d4][%mdl 32]} 2. c3 {[%emt 0:00:54]} Nf6 {[%emt 0:00:23]} 3. e5 {[%emt 0:00:00]} Nd5 {[%emt 0:00:09]} 4. d4 {[%emt 0:00:23]} cxd4 {[%emt 0:00:30]} 5. Nf3 {[%emt 0:00:30]} Nc6 {[%emt 0:00:51]} 6. Bc4 {[%emt 0:02:42]} Nb6 {[%emt 0:01:35]} 7. Bb3 {[%emt 0:00:19]} d5 {[%emt 0:18:34]} 8. exd6 {[%emt 0:00:29]} Qxd6 {[%emt 0:01:48]} 9. cxd4 {[%emt 0:01:16]} Be6 {[%emt 0:08:59]} 10. O-O {[%emt 0:01:43]} Bxb3 {[%emt 0:02:12]} 11. Qxb3 {[%emt 0:00:54]} e6 {[%emt 0:08:58]} 12. Nc3 {[%emt 0:01:03]} Be7 {[%emt 0:08:07]} 13. Rd1 {[%emt 0:03:07] is cutting edge theory. B22: Sicilian: 2 c3.} Rd8 {[%emt 0:08:34]} 14. a3 {[%emt 0:13:15]} O-O {[%emt 0:00:44]} 15. Be3 {[%emt 0:00:38][%cal Od4d5] Black has an edge.} Na5 {[%emt 0:04:01]} 16. Qc2 {[%emt 0:08:53] [#]} Rc8 $146 {[%emt 0:03:56]} ({Predecessor:} 16... Nac4 17. Bg5 f6 18. Bh4 Qc6 19. Re1 Rc8 20. Qb3 a5 21. Rad1 a4 22. Qa2 Rfe8 {½-½ (40) Tomici,S (2177)-Eggink,M (2013) Prague 2012}) 17. Bg5 {[%emt 0:10:02]} f6 {[%emt 0:02:22]} 18. Be3 {[%emt 0:04:52]} Nd5 {[%emt 0:01:22]} 19. Rd3 {[%emt 0:01:18]} b5 {[%emt 0:09:23] ...b4 is the strong threat.} 20. Qe2 {[%emt 0:04:15]} Nxc3 {[%emt 0:04:25]} 21. bxc3 {[%emt 0:01:12]} Nc4 {[%emt 0:02:57][%cal Od6d7]} 22. Bc1 {[%emt 0:06:35]} Qd5 {[%emt 0:07:49]} 23. a4 {[%emt 0:03:31]} b4 {[%emt 0:01:05]} 24. cxb4 {[%emt 0:01:00]} Bxb4 {[%emt 0:00:06]} 25. h4 {[%emt 0:03:01]} Rfd8 {[%emt 0:00:46] Black has more active pieces.} 26. Rb3 {[%emt 0:04:47]} (26. Bf4 $15) 26... a5 $17 {[%emt 0:00:11]} 27. Bf4 {[%emt 0:01:55] [#]} Rc6 {[%emt 0:01:17]} (27... Nd2 $142 $1 {[%mdl 512]} 28. Rd3 (28. Nxd2 $2 {loses.} Bxd2 29. Bxd2 Qxb3 $19) (28. Re3 Nxf3+) 28... Ne4) 28. Qa2 {[%emt 0:01:46]} (28. Rbb1 $142) 28... h6 {[%emt 0:01:47]} 29. Rc1 {[%emt 0:02:26]} g5 {[%emt 0:01:17]} 30. Bg3 {[%emt 0:07:03]} Rdc8 {[%emt 0:00:37] aiming for ...g4.} 31. Qb1 {[%emt 0:00:31]} Kg7 {[%emt 0:00:20] Against Qg6+} 32. h5 {[%emt 0:00:01]} (32. Rd1 $142) 32... Qf5 $2 {[%emt 0:00:42]} (32... f5 $1 $17 33. Rd1 g4) 33. d5 $1 $36 {[%emt 0:00:52][%mdl 2048] White is more active.} (33. Qxf5 $2 exf5 34. Rbb1 (34. d5 $2 Rc5 $19) 34... f4 $19) 33... Qxb1 {[%emt 0:00:31]} (33... Qxd5 $2 34. Qg6+ Kf8 35. Qxh6+ Kf7 36. Qh7+ Ke8 37. Qg6+ Ke7 38. Rd3 $18) 34. Rbxb1 {[%emt 0:00:12]} exd5 {[%emt 0:00:21]} 35. Nd4 {[%emt 0:00:04]} Kf7 {[%emt 0:00:42]} 36. Nxc6 $16 {[%emt 0:00:58]} Rxc6 {[%emt 0:00:01]} 37. Rd1 {[%emt 0:00:15] Inhibits d4.} (37. f3 $16) 37... Ke6 {[%emt 0:00:17]} 38. f3 {[%emt 0:00:33]} f5 {[%emt 0:01:08]} 39. Bf2 {[%emt 0:00:15]} f4 {[%emt 0:00:17]} 40. Rbc1 {[%emt 0:00:00]} Kd6 {[%emt 0:00:00]} 41. Kf1 {[%emt 0:12:57]} ({White should try} 41. g3 $16) 41... Rc7 $14 {[%emt 0:17:13]} 42. g3 {[%emt 0:11:23]} Ke6 {[%emt 0:05:58]} (42... Ba3 $1 $11 43. Ra1 (43. Rb1 Bb4 $14) 43... Bc5) 43. gxf4 {[%emt 0:03:28]} gxf4 {[%emt 0:00:09]} 44. Bd4 {[%emt 0:00:22] Against Rg7} Rf7 {[%emt 0:05:04]} (44... Kf5 $16 {was worth a try.}) 45. Ke2 $1 $18 {[%emt 0:00:15] Threatens to win with Rg1.} Kf5 {[%emt 0:02:16]} 46. Bc5 {[%emt 0:02:43]} Ke5 {[%emt 0:01:10]} 47. Bd4+ {[%emt 0:00:49]} (47. Bf2 $142) 47... Kf5 {[%emt 0:00:06]} 48. Kf2 {[%emt 0:01:28]} (48. Rg1 $1 $18 {has better winning chances.}) 48... Re7 {[%emt 0:01:47]} 49. Rc2 {[%emt 0:02:42] Strongly threatening Re2.} Rb7 {[%emt 0:00:35]} 50. Re2 {[%emt 0:02:18]} Be7 {[%emt 0:00:31]} (50... Rb8 $16) 51. Kg2 {[%emt 0:01:57]} (51. Kg1 $18) 51... Bf6 $16 {[%emt 0:01:03] [#]} 52. Bf2 {[%emt 0:08:42]} (52. Re8 $1 $16 {[%cal Re8f8]}) 52... Rd7 {[%emt 0:00:20]} 53. Rc1 {[%emt 0:01:04] Against d4} (53. Rb1 $14) 53... Be5 $11 {[%emt 0:01:00]} 54. Kh3 {[%emt 0:00:23]} Rb7 {[%emt 0:00:28]} 55. Rd1 {[%emt 0:00:34]} Rb3 {[%emt 0:00:23]} 56. Kg2 {[%emt 0:01:09]} (56. Rxd5 $5 Rxf3+ 57. Kh2 $16) 56... Ke6 {[%emt 0:00:14]} 57. Bd4 {[%emt 0:01:29]} (57. Rde1 $11 Kd6 58. Rc1) 57... Ne3+ $17 {[%emt 0:00:15]} 58. Bxe3 {[%emt 0:00:20]} fxe3 $15 {[%emt 0:00:01][%mdl 4096] Endgame KRR-KRB} 59. Rc2 $2 {[%emt 0:00:25][%mdl 8192] [#]} (59. Kf1 $17) 59... d4 $1 $19 {[%emt 0:00:11]} 60. f4 {[%emt 0:00:23]} d3 {[%emt 0:00:47]} (60... Bxf4 $2 61. Rxd4 Ke5 62. Rdc4 $18) 61. Rc6+ {[%emt 0:01:23]} Kd5 {[%emt 0:00:44]} 62. Rdc1 {[%emt 0:00:06] Black must now prevent R1c5+.} Bd4 {[%emt 0:01:16] Prevents R1c5+. Black mates.} ({Weaker is} 62... Bxf4 63. R1c5+ Kd4 64. Rc4+ Kd5 65. R4c5+ Ke4 66. Rc4+ Kf5 67. Kf3 $15) 63. Rc8 {[%emt 0:00:12]} d2 {[%emt 0:00:26]} 64. R1c7 {[%emt 0:00:15]} d1=Q {[%emt 0:00:40] A wild game.   Weighted Error Value: White=0.46/Black=0.21 (precise)} 0-1